bitfinex/quotes_ETHUSD_20251117
["timestamp","ask_amount","ask_price","bid_price","bid_amount"]
[1763338391031,0.6443304,3106.4,3105.1,0.6469]
[1763338392317,1.9560448,3106.3,3104.8,0.4627]
[1763338392517,0.38355199,3106.2,3104.0,0.1842]
[1763338392718,0.405504,3106.1,3104.0,0.6469]
[1763338393133,0.405504,3106.1,3104.1,0.4627]
[1763338393306,0.405504,3105.9,3104.1,0.4627]
[1763338393630,1.64954506,3105.8,3104.0,0.1842]
[1763338393829,0.405504,3105.7,3104.1,0.4627]
[1763338394031,0.405504,3105.5,3104.1,0.4627]
[1763338394731,0.4168,3105.6,3104.0,0.1842]
[1763338394732,0.405504,3105.3,3104.0,0.1842]
[1763338395095,0.405504,3105.3,3104.1,0.4627]
[1763338395438,0.822304,3105.3,3104.0,0.1842]
[1763338395805,1.453,3105.7,3103.8,0.001]
[1763338395806,0.405504,3105.1,3103.8,0.001]
[1763338395998,0.405504,3104.9,3103.8,0.001]
[1763338396411,0.138,3104.8,3103.8,0.001]
[1763338396923,0.138,3104.8,3103.8,0.4839]
[1763338397243,1.454,3105.3,3103.8,0.4839]
[1763338397451,0.5548,3105.9,3103.8,0.4839]
[1763338397755,0.405504,3105.7,3103.8,0.4839]
[1763338397902,0.61768,3105.8,3103.8,0.4839]
[1763338398102,0.20088,3105.8,3103.9,0.405504]
[1763338398331,0.138,3105.9,3103.9,0.405504]
[1763338398660,0.4168,3105.8,3104.0,0.4829]
[1763338398863,0.405504,3105.7,3104.0,0.4829]
[1763338399048,0.4168,3105.8,3104.1,0.1825]
[1763338399049,0.405504,3105.6,3104.1,0.1825]
[1763338399227,0.405504,3105.4,3104.1,0.1825]
[1763338399575,0.32349458,3105.3,3104.1,0.1825]
[1763338399776,0.822304,3105.4,3104.1,0.1825]
[1763338400860,0.4168,3105.3,3104.1,0.1825]
[1763338401045,0.405504,3105.4,3104.2,0.4829]
[1763338401250,0.822304,3105.4,3104.2,0.4829]
[1763338401441,0.405504,3105.6,3104.2,0.4829]
[1763338401638,0.405504,3105.4,3104.2,0.4829]
[1763338401837,0.1859504,3105.5,3104.2,0.4829]
[1763338402050,0.405504,3105.6,3104.2,0.4829]
[1763338402630,0.4168,3105.8,3104.2,0.4829]
[1763338402859,0.138,3105.9,3104.2,0.4829]
[1763338402860,0.4168,3105.7,3104.2,0.4829]
[1763338403561,0.138,3105.9,3104.2,0.4829]
[1763338406646,0.138,3106.3,3104.3,0.405504]
[1763338407041,0.822304,3106.2,3104.4,0.4597]
[1763338407241,0.405504,3105.6,3104.1,0.6422]
[1763338407440,0.405504,3105.2,3104.1,0.1825]
[1763338407753,0.138,3104.2,3103.8,0.001]
[1763338408654,0.5548,3104.2,3103.8,0.001]
[1763338409236,0.7182756,3104.2,3104.1,0.001]
[1763338409485,0.3014756,3104.2,3104.1,0.001]
[1763338409935,0.138,3104.2,3104.1,0.001]
[1763338411446,0.1408,3105.0,3104.1,0.656]
[1763338411646,1.61752765,3106.6,3104.1,0.656]
[1763338411647,0.1408,3105.2,3104.1,0.656]
[1763338411867,0.30153406,3105.2,3104.1,0.001]
[1763338412167,0.4168,3105.1,3104.1,0.001]
[1763338412772,0.405504,3105.0,3104.1,0.001]
[1763338412977,0.405504,3104.8,3104.1,0.001]
[1763338413297,0.62654718,3104.7,3104.1,0.001]
[1763338413500,0.405504,3104.8,3104.1,0.1963]
[1763338413909,0.4168,3105.1,3104.1,0.1963]
[1763338414912,0.405504,3105.1,3104.1,0.656]
[1763338415270,2.78057947,3105.7,3104.1,0.656]
[1763338415271,1.455,3105.6,3104.2,0.4597]
[1763338415466,1.455,3106.1,3104.2,0.4597]
[1763338415999,0.4168,3106.0,3104.2,0.4597]
[1763338416206,0.18718,3105.9,3104.2,0.4597]
[1763338416571,0.4168,3105.8,3104.2,0.4597]
[1763338416769,2.28759075,3105.7,3104.1,0.1963]
[1763338416964,0.30003099,3105.6,3104.1,0.1963]
[1763338417213,0.71683099,3105.6,3104.1,0.1963]
[1763338417508,0.405504,3105.4,3104.1,0.1963]
[1763338417673,0.405504,3105.2,3104.1,0.1963]
[1763338417873,0.30003099,3105.1,3104.2,0.4597]
[1763338418082,0.30003099,3105.6,3104.2,0.4597]
[1763338418280,0.30003099,3105.5,3104.2,0.4597]
[1763338418491,0.30003099,3105.4,3104.3,0.23779752]
[1763338418690,0.30003099,3105.3,3104.3,0.23779752]
[1763338419003,0.405504,3105.7,3104.4,0.4597]
[1763338419330,0.405504,3105.5,3104.4,0.4597]
[1763338419473,0.405504,3105.5,3104.1,1.91827524]
[1763338419474,0.405504,3105.3,3104.1,0.1963]
[1763338419673,0.405504,3105.1,3104.1,0.1963]
[1763338419992,0.30122486,3105.0,3104.1,0.1963]
[1763338420310,0.405504,3105.1,3104.2,0.4597]
[1763338420476,0.44208066,3105.0,3104.1,0.1963]
[1763338420667,0.30128066,3104.9,3104.1,0.1963]
[1763338420888,0.30128066,3104.8,3104.1,0.1963]
[1763338421129,0.1408,3105.0,3104.1,0.1963]
[1763338421335,1.455,3105.8,3104.2,0.4597]
[1763338421628,0.405504,3105.6,3104.2,0.69749752]
[1763338421798,0.30136683,3105.5,3104.2,0.69749752]
[1763338421994,0.30136683,3105.4,3104.3,0.4597]
[1763338422318,1.74452429,3105.7,3104.3,0.72127728]
[1763338422319,0.30136683,3105.3,3104.3,0.72127728]
[1763338422641,0.16183491,3105.9,3104.4,0.4597]
[1763338422819,0.405504,3105.7,3104.4,0.4597]
[1763338423006,0.30137156,3105.6,3104.4,0.4597]
[1763338423335,0.30137156,3105.5,3104.4,0.4597]
[1763338423535,0.30137156,3105.4,3104.4,0.4597]
[1763338423739,0.30137156,3105.3,3104.4,0.4597]
[1763338423923,0.405504,3105.8,3104.4,0.4597]
[1763338424122,0.30138657,3105.7,3104.4,0.4597]
[1763338424323,0.30138657,3105.6,3104.4,0.4597]
[1763338424534,0.30138657,3105.5,3104.4,0.4597]
[1763338424726,0.30138657,3105.4,3104.4,0.4597]
[1763338424920,0.30138657,3105.3,3104.4,0.4597]
[1763338425097,0.405504,3105.8,3104.4,0.4597]
[1763338425430,0.30137264,3105.7,3104.4,0.4597]
[1763338425727,0.30137264,3105.6,3104.4,0.4597]
[1763338425928,0.30137264,3105.5,3104.4,0.4597]
[1763338426129,0.405504,3105.8,3104.5,0.21816752]
[1763338426130,0.30137264,3105.4,3104.5,0.21816752]
[1763338426430,0.30137264,3105.3,3104.5,0.21816752]
[1763338426591,0.405504,3105.8,3104.6,0.4597]
[1763338426801,0.30140766,3105.7,3105.2,0.6477]
[1763338427098,0.30140766,3105.6,3105.2,0.6477]
[1763338427328,0.405504,3105.8,3105.0,0.1953]
[1763338427531,0.30126658,3105.7,3104.5,2.18167524]
[1763338427709,0.30126658,3105.6,3104.5,2.18167524]
[1763338427910,0.30126658,3105.5,3104.5,2.18167524]
[1763338428104,0.822304,3105.8,3104.5,2.18167524]
[1763338428333,0.30133583,3105.7,3104.5,2.18167524]
[1763338428525,0.30133583,3105.6,3104.5,0.4597]
[1763338428733,0.30133583,3105.5,3104.5,0.4597]
[1763338429036,0.30133583,3105.4,3104.5,0.4597]
[1763338429199,0.4168,3105.7,3104.5,2.18167524]
[1763338429401,1.1337408,3105.5,3104.5,0.4597]
[1763338429594,0.3013135,3105.4,3104.5,0.4597]
[1763338429820,1.5505408,3105.7,3104.5,0.4597]
[1763338430029,0.3013382,3105.6,3104.5,0.4597]
[1763338430336,0.3013382,3105.5,3104.5,0.4597]
[1763338430637,0.3013382,3105.4,3104.5,0.4597]
[1763338430837,0.822304,3105.6,3104.4,1.91727524]
[1763338431146,1.1337408,3105.3,3104.4,0.1953]
[1763338431310,0.30145018,3105.2,3104.4,0.1953]
[1763338431499,1.1337408,3105.3,3104.4,0.1953]
[1763338431699,0.30152971,3105.2,3104.4,0.1953]
[1763338431923,4.5307408,3105.5,3104.2,1.72197524]
[1763338432155,1.12389693,3105.4,3104.1,1.91827524]
[1763338432343,0.30159293,3105.3,3104.1,2.37927524]
[1763338432543,0.30159293,3105.2,3104.1,1.91827524]
[1763338432743,0.822304,3105.4,3104.2,0.461]
[1763338432943,0.822304,3105.4,3104.1,1.91827524]
[1763338432944,1.1337408,3105.1,3104.1,0.1963]
[1763338433176,1.5392448,3105.2,3104.1,0.1963]
[1763338433352,0.30165249,3105.1,3104.1,0.6573]
[1763338433558,0.822304,3105.6,3104.1,0.6573]
[1763338433753,0.30166294,3105.5,3104.2,0.461]
[1763338433953,0.30166294,3105.4,3104.2,0.461]
[1763338434158,0.30166294,3105.3,3104.2,0.461]
[1763338434482,0.4168,3105.3,3104.2,0.461]
[1763338436387,0.4168,3105.3,3104.2,2.18297524]
[1763338436388,0.405504,3105.2,3104.2,2.18297524]
[1763338436674,0.405504,3105.3,3104.2,0.461]
[1763338436838,3.397,3105.7,3104.3,0.461]
[1763338437038,0.4168,3105.8,3104.3,0.461]
[1763338437039,5.23803462,3105.6,3104.3,2.18297524]
[1763338437258,1.5392448,3105.4,3104.3,1.72197524]
[1763338437457,1.5392448,3105.4,3104.3,2.18297524]
[1763338437668,0.405504,3105.3,3104.3,1.72197524]
[1763338437860,3.802504,3105.3,3104.3,1.72197524]
[1763338438062,1.1337408,3105.2,3104.3,1.72197524]
[1763338438257,1.1337408,3105.2,3104.2,1.72197524]
[1763338438460,0.405504,3105.1,3104.3,1.72197524]
[1763338438679,0.822304,3105.1,3104.2,1.72197524]
[1763338439479,1.1337408,3105.0,3104.2,1.72197524]
[1763338439858,0.1408,3104.9,3104.2,1.72197524]
[1763338440253,1.1337408,3105.0,3104.3,1.72197524]
[1763338440566,0.64977197,3106.5,3104.3,1.72197524]
[1763338440567,0.16335711,3105.9,3104.9,0.475]
[1763338440769,0.30204842,3105.8,3105.0,1.73828913]
[1763338441080,3.535,3106.3,3105.1,1.73828913]
[1763338441081,0.15850187,3106.1,3105.1,1.73828913]
[1763338441242,3.535,3106.3,3105.2,1.73828913]
[1763338441243,0.138,3106.3,3105.2,1.73828913]
[1763338441449,0.4168,3106.2,3105.3,1.73828913]
[1763338441647,0.405504,3106.1,3105.3,1.73828913]
[1763338442076,0.15846939,3106.2,3105.3,1.73828913]
[1763338442279,1.455,3106.9,3105.5,1.73828913]
[1763338442579,0.16446132,3107.2,3106.2,2.21328913]
[1763338442879,1.1337408,3107.3,3106.3,1.73828913]
[1763338443085,3.397,3107.4,3106.3,1.73828913]
[1763338443293,0.4168,3107.3,3106.4,1.73828913]
[1763338443448,1.5505408,3107.3,3106.2,2.19928913]
[1763338443869,1.5505408,3107.3,3106.2,1.73828913]
[1763338443870,5.04176751,3107.1,3106.2,1.73828913]
[1763338444069,1.1337408,3106.8,3105.8,1.73828913]
[1763338444271,1.1337408,3106.8,3105.4,2.29596698]
[1763338444272,0.405504,3107.0,3106.1,0.1828]
[1763338444471,0.405504,3106.8,3106.1,0.1828]
[1763338445582,0.138,3106.9,3106.1,0.1828]
[1763338445783,0.58278916,3107.3,3106.2,0.461]
[1763338445961,0.4168,3107.8,3106.2,2.19928913]
[1763338446161,0.18718,3107.7,3106.2,2.19928913]
[1763338446363,1.82148565,3107.7,3106.3,0.461]
[1763338446561,2.42504757,3107.6,3106.2,1.73828913]
[1763338446750,2.04324745,3107.4,3106.1,1.73828913]
[1763338446951,1.69304105,3107.3,3106.0,1.73828913]
[1763338447281,0.405504,3107.1,3105.6,0.461]
[1763338447482,3.18401231,3107.1,3105.6,0.461]
[1763338447683,3.19738025,3107.0,3105.6,0.461]
[1763338447889,0.405504,3106.8,3105.6,0.461]
[1763338448462,1.5392448,3106.8,3105.6,0.461]
[1763338448673,0.405504,3106.6,3105.6,0.461]
[1763338448860,2.02303165,3106.6,3105.6,0.461]
[1763338449060,2.43983165,3106.6,3105.6,0.461]
[1763338449269,0.2685,3105.7,3105.4,1.73828913]
[1763338449461,0.138,3105.5,3105.4,1.73828913]
[1763338449668,1.6896356,3106.3,3105.4,1.73828913]
[1763338449890,1.69375111,3106.1,3105.4,1.73828913]
[1763338450058,0.21064356,3106.2,3105.4,1.73828913]
[1763338450259,2.06874467,3106.4,3105.4,1.73828913]
[1763338450463,2.1064356,3106.3,3105.4,1.73828913]
[1763338451090,1.61182504,3106.2,3105.4,1.73828913]
[1763338451281,1.61182504,3106.2,3105.5,1.73828913]
[1763338451671,0.2685,3106.1,3105.5,2.2e-07]
[1763338451882,0.4153,3105.6,3104.6,2.29596698]
[1763338452192,0.4153,3105.6,3104.6,2.52556368]
[1763338452492,0.138,3105.8,3104.7,0.461]
[1763338452854,1.1337408,3106.1,3104.7,0.461]
[1763338453197,0.58631496,3106.9,3104.7,0.461]
[1763338453198,0.4168,3106.6,3104.9,2.29596698]
[1763338453378,0.4168,3106.6,3105.0,2.75696698]
[1763338453379,1.69205988,3106.5,3105.0,2.75696698]
[1763338453560,1.6896356,3106.3,3105.1,0.2756967]
[1763338453895,1.6896356,3106.3,3105.1,0.9194967]
[1763338454312,3.397,3106.2,3105.1,0.9194967]
[1763338454606,1.6896356,3106.3,3105.1,0.9194967]
[1763338454789,1.34462679,3106.4,3105.1,0.9194967]
[1763338454790,2.02862504,3106.2,3105.1,0.9194967]
[1763338454962,2.36595022,3106.2,3105.1,0.9194967]
[1763338455163,2.36595022,3106.2,3104.9,2.29596698]
[1763338455164,2.11055111,3106.1,3104.9,2.29596698]
[1763338455992,1.94915022,3106.2,3105.0,0.461]
[1763338456192,1.69375111,3106.1,3105.0,0.461]
[1763338456363,1.69375111,3106.1,3105.1,0.1824]
[1763338456759,1.1337408,3105.9,3105.1,0.1824]
[1763338457159,6.4,3106.0,3105.1,0.1824]
[1763338457160,6.4,3106.0,3105.2,0.4982]
[1763338457361,1.1337408,3105.9,3105.2,2.79416698]
[1763338457895,1.1337408,3105.9,3105.3,0.4982]
[1763338458595,6.4,3106.8,3105.8,0.4724]
[1763338458797,0.138,3106.9,3105.8,0.4724]
[1763338458997,0.138,3106.9,3105.9,0.4982]
[1763338459198,0.4168,3106.8,3105.8,0.4724]
[1763338462100,0.4168,3106.8,3105.8,0.9522]
[1763338462313,0.29689968,3106.9,3105.8,0.9522]
[1763338462524,0.44831496,3107.8,3106.8,0.6758]
[1763338462725,1.63302572,3107.9,3106.8,0.6758]
[1763338463017,0.4168,3107.7,3106.5,0.1907]
[1763338463310,1.60274357,3107.6,3106.5,0.1907]
[1763338463511,0.20195436,3107.5,3106.5,0.1907]
[1763338463702,0.20195436,3107.5,3106.5,0.6705]
[1763338464603,0.20195436,3107.5,3106.5,0.1907]
[1763338464777,2.05110565,3107.7,3106.6,0.4798]
[1763338465187,1.1337408,3107.5,3106.3,0.1907]
[1763338465511,1.1337408,3107.5,3106.0,2.29596698]
[1763338465729,1.1337408,3107.5,3105.8,0.8046167]
[1763338465730,3.802504,3107.1,3105.8,2.29596698]
[1763338465878,3.802504,3107.1,3105.6,2.29596698]
[1763338465879,1.69661278,3106.9,3105.6,2.29596698]
[1763338466080,1.63010112,3106.7,3105.6,2.29596698]
[1763338466278,1.63010112,3106.7,3105.3,0.001]
[1763338466279,1.61752765,3106.6,3105.3,2.29696698]
[1763338466520,1.69205988,3106.5,3105.3,2.29696698]
[1763338466679,2.06874467,3106.4,3105.3,2.29696698]
[1763338467222,1.6896356,3106.3,3105.3,2.29696698]
[1763338467384,0.21064356,3106.3,3105.3,2.29696698]
[1763338467880,1.90027916,3106.3,3105.3,2.29696698]
[1763338468109,0.21064356,3106.3,3105.3,2.29696698]
[1763338468309,0.21064356,3106.3,3105.4,2.29596698]
[1763338468510,0.4168,3106.4,3105.4,2.29596698]
[1763338469019,0.405504,3106.7,3105.4,2.29596698]
[1763338469020,1.9560448,3106.7,3105.5,0.4798]
[1763338469207,3.16806845,3106.6,3105.5,2.77576698]
[1763338469394,2.03432765,3106.6,3105.5,2.29596698]
[1763338469594,1.65194467,3106.4,3105.5,2.29596698]
[1763338469903,0.20687447,3106.3,3105.5,2.29596698]
[1763338471719,0.20687447,3106.3,3105.9,1.73641415]
[1763338472191,2.10885988,3106.5,3105.9,1.73641415]
[1763338472392,2.09276201,3106.5,3105.9,1.73641415]
[1763338472997,0.40070213,3106.5,3105.9,1.73641415]
[1763338473320,0.40070213,3106.5,3106.0,1.73641415]
[1763338473504,3.16934592,3106.7,3106.0,1.73641415]
[1763338473708,0.4007,3106.1,3106.0,1.73641415]
[1763338473905,0.4007,3106.1,3105.9,1.73641415]
[1763338474317,1.1337408,3106.0,3105.9,1.73641415]
[1763338474820,1.1337408,3105.9,3105.8,1.73641415]
[1763338475032,4.9314408,3105.9,3105.4,1.73641415]
[1763338475233,0.4007,3105.5,3105.3,1.73741415]
[1763338475521,0.1246,3105.4,3105.3,1.73741415]
[1763338475701,4.6553408,3105.4,3104.9,1.73741415]
[1763338475902,0.1451,3105.0,3104.9,0.001]
[1763338476298,0.5458,3105.0,3104.9,0.001]
[1763338476499,0.1451,3105.0,3104.9,0.001]
[1763338478834,3.397,3105.6,3104.9,0.9659]
[1763338479042,4.5307408,3105.5,3104.9,0.9659]
[1763338479398,2.90518586,3105.8,3104.9,0.9659]
[1763338479597,0.37124213,3105.7,3104.9,0.9659]
[1763338479931,1.1337408,3105.6,3104.9,0.9659]
[1763338480499,0.37124213,3105.7,3104.9,2.70231415]
[1763338480724,0.1219,3105.8,3104.9,2.70231415]
[1763338480950,1.1337408,3105.6,3105.0,1.73641415]
[1763338481525,1.1337408,3105.6,3105.1,0.1907]
[1763338481840,6.4,3105.5,3105.2,1.73641415]
[1763338482036,10.635,3107.2,3105.3,2.29596698]
[1763338482037,0.4007,3107.1,3105.3,2.29596698]
[1763338482238,0.325,3107.2,3105.7,1.73364225]
[1763338482239,2.02406312,3106.6,3105.7,1.73364225]
[1763338482405,0.40653547,3106.6,3105.7,1.73364225]
[1763338482914,0.4007,3106.6,3105.7,1.73364225]
[1763338483120,2.01822765,3106.6,3105.7,1.73364225]
[1763338483441,0.31519685,3106.5,3105.7,1.73364225]
[1763338484520,1.65194467,3106.4,3105.7,1.73364225]
[1763338484723,2.09617107,3106.3,3105.6,1.73364225]
[1763338484929,3.63061187,3106.3,3105.6,1.73364225]
[1763338485141,2.49687107,3106.3,3105.6,1.73364225]
[1763338485343,0.80723547,3106.3,3105.6,1.73364225]
[1763338486909,0.4007,3106.3,3105.6,1.73364225]
[1763338487510,0.0015,3105.6,3105.1,0.1907]
[1763338487749,0.0015,3105.6,3104.9,0.001]
[1763338488487,0.1219,3105.7,3104.9,0.001]
[1763338488649,0.1219,3105.9,3105.0,0.4798]
[1763338489251,0.1219,3105.9,3105.1,0.1907]
[1763338489413,0.17994733,3105.8,3105.1,0.1907]
[1763338489614,0.4007,3106.2,3105.1,0.6705]
[1763338489814,2.78568547,3106.4,3105.1,0.6705]
[1763338490024,2.78568547,3106.4,3105.2,0.4798]
[1763338491555,4.851,3106.5,3105.2,0.4798]
[1763338491556,1.69205988,3106.5,3105.2,0.4798]
[1763338491721,5.42222765,3106.6,3105.2,0.4798]
[1763338491912,1.1337408,3106.5,3105.2,0.4798]
[1763338492115,5.42222765,3106.6,3105.2,0.4798]
[1763338492533,0.58831496,3106.8,3105.2,0.4798]
[1763338492765,1.1337408,3106.7,3105.2,2.77576698]
[1763338492967,1.1337408,3106.7,3105.3,0.7574467]
[1763338493170,2.76384192,3106.7,3105.3,3.05341368]
[1763338493368,2.76384192,3106.7,3105.4,0.4608]
[1763338493734,1.61752765,3106.6,3105.4,0.4608]
[1763338494767,1.1337408,3106.4,3105.4,0.4608]
[1763338494969,1.1337408,3106.4,3105.4,0.76614137]
[1763338495272,1.1337408,3106.4,3105.5,0.4608]
[1763338496786,1.1337408,3106.4,3105.4,2.29596698]
[1763338497083,0.80723547,3106.3,3105.4,2.29596698]
[1763338497384,2.78568547,3106.4,3105.5,0.4608]
[1763338497385,1.58205576,3106.4,3105.5,0.4608]
[1763338497536,1.1337408,3106.4,3105.5,0.4608]
[1763338497966,1.1337408,3106.2,3105.5,0.4608]
[1763338498838,0.4007,3106.1,3105.3,2.29596698]
[1763338499170,1.54027627,3106.2,3105.2,2.29596698]
[1763338499472,1.54027627,3106.2,3105.3,0.4608]
[1763338499681,3.15210131,3106.2,3105.3,0.4608]
[1763338500474,0.2696,3105.4,3105.1,0.001]
[1763338500683,0.1463,3105.2,3104.9,0.001]
[1763338500893,0.52843547,3105.4,3104.9,0.001]
[1763338501043,0.50173775,3105.4,3104.9,0.001]
[1763338501496,1.2556408,3105.8,3104.9,0.4618]
[1763338501639,0.1219,3105.8,3104.9,0.001]
[1763338501844,0.1219,3105.8,3104.9,0.4618]
[1763338502356,0.1219,3105.9,3104.9,0.4618]
[1763338502682,0.4007,3106.2,3104.9,0.4618]
[1763338502839,0.002,3106.6,3106.1,0.39167113]
[1763338503041,0.002,3106.6,3106.1,0.1979]
[1763338503244,0.002,3106.6,3106.2,0.4608]
[1763338503508,0.002,3106.6,3106.1,0.1979]
[1763338503776,0.4979,3106.6,3105.2,2.8576463]
[1763338503979,0.40737085,3106.5,3105.5,0.4608]
[1763338504276,0.40737085,3106.5,3105.2,2.8576463]
[1763338504581,2.14784467,3106.4,3105.3,0.4608]
[1763338504741,0.40737085,3106.3,3105.0,0.6587]
[1763338505077,0.90327085,3106.3,3105.1,0.4608]
[1763338505298,1.2036239,3106.3,3105.1,0.4608]
[1763338505598,1.61182504,3106.2,3105.1,0.4608]
[1763338505745,2.10772504,3106.2,3105.1,0.4608]
[1763338505944,0.4959,3106.2,3105.1,0.4608]
[1763338506795,1.69375111,3106.1,3105.0,0.1979]
[1763338507094,3.404,3105.9,3104.9,0.001]
[1763338507329,0.40737085,3105.9,3104.9,0.001]
[1763338507535,0.4959,3106.5,3105.0,0.4608]
[1763338507750,0.002,3106.6,3105.9,0.4956]
[1763338508033,1.43778035,3106.6,3105.1,0.1979]
[1763338508234,0.363718,3106.6,3105.1,0.6587]
[1763338508437,3.11498645,3106.6,3105.1,0.6587]
[1763338508599,0.4959,3106.5,3105.2,0.4608]
[1763338508785,0.94421496,3106.5,3105.2,0.4608]
[1763338508986,1.11574534,3106.5,3105.2,0.4608]
[1763338509229,0.4959,3106.4,3105.2,0.4608]
[1763338509390,2.13795056,3106.3,3104.9,0.001]
[1763338509585,4.94511165,3106.2,3104.9,0.001]
[1763338509790,1.1337408,3106.0,3105.0,0.4608]
[1763338509988,1.35158581,3106.2,3105.0,0.4608]
[1763338510221,0.1219,3105.9,3105.1,0.1979]
[1763338510423,1.1337408,3106.1,3105.1,0.1979]
[1763338510718,0.4959,3106.0,3105.1,0.1979]
[1763338510919,2.77403531,3105.9,3105.1,0.1979]
[1763338511149,0.36773062,3105.8,3105.1,0.1979]
[1763338511355,0.2485,3105.2,3105.0,2.31783047]
[1763338511516,0.2485,3105.2,3104.9,0.001]
[1763338511838,0.7419,3105.2,3104.9,0.001]
[1763338512245,1.68788627,3105.6,3104.9,0.001]
[1763338512246,0.005,3105.0,3104.9,0.001]
[1763338512550,0.005,3105.0,3104.6,0.001]
[1763338512551,0.4359,3104.9,3104.6,0.001]
[1763338512748,0.1933,3104.7,3104.5,0.001]
[1763338513235,0.0517,3104.6,3104.5,0.001]
[1763338513774,5.39342661,3105.0,3104.5,0.001]
[1763338513775,0.1923,3105.2,3104.5,0.9574]
[1763338514054,0.1923,3105.5,3104.6,0.9564]
[1763338514229,0.18801863,3105.4,3104.6,0.4956]
[1763338514611,0.4959,3105.3,3104.5,0.001]
[1763338514816,1.1337408,3105.2,3104.5,0.001]
[1763338515014,0.4959,3105.1,3104.5,0.001]
[1763338515524,0.40737085,3105.3,3104.5,0.001]
[1763338515847,0.18801863,3105.4,3104.5,0.4618]
[1763338516054,0.1923,3105.5,3104.5,0.4618]
[1763338516358,6.8781,3105.4,3104.5,0.001]
[1763338516660,0.0712,3104.6,3104.5,0.001]
[1763338516860,1.1337408,3105.3,3104.5,0.001]
[1763338516861,5.39342661,3105.3,3104.5,0.001]
[1763338517019,1.1337408,3105.1,3104.5,0.001]
[1763338517221,0.2615,3104.6,3104.5,0.001]
[1763338517929,0.1893,3104.8,3104.5,0.001]
[1763338518137,1.2099408,3104.6,3104.5,0.001]
[1763338518337,7.6099408,3104.6,3104.5,0.001]
[1763338518567,8.0811408,3104.6,3104.5,0.001]
[1763338519069,7.6099408,3104.6,3104.5,0.001]
[1763338520236,7.6071408,3104.6,3104.5,0.001]
[1763338521455,7.6071408,3104.6,3104.2,0.001]
[1763338521456,8.93682661,3104.6,3104.2,0.001]
[1763338521658,0.0047,3104.3,3104.1,0.001]
[1763338521970,0.4874,3104.5,3104.1,0.001]
[1763338521971,0.0595,3104.2,3104.1,0.001]
[1763338522646,0.0595,3104.2,3104.0,0.001]
[1763338522834,0.0642,3104.1,3103.5,0.001]
[1763338523037,0.4874,3104.2,3103.5,0.001]
[1763338523684,0.0159,3103.8,3103.5,0.001]
[1763338524970,0.0159,3103.8,3103.1,0.4746]
[1763338524971,0.0934,3103.7,3103.1,0.001]
[1763338525185,3.8735,3103.2,3101.9,0.1979]
[1763338525395,0.4695,3102.0,3101.3,0.1856]
[1763338525535,0.405504,3103.0,3101.3,0.6592]
[1763338525740,0.91734184,3102.9,3101.9,0.4708]
[1763338525941,1.1337408,3102.8,3101.9,0.4708]
[1763338526174,1.1337408,3102.8,3101.5,0.4736]
[1763338526175,1.1337408,3102.6,3101.5,0.4736]
[1763338526426,0.42994184,3102.5,3101.3,0.1856]
[1763338526636,1.3656568,3102.5,3101.3,0.1856]
[1763338526814,1.1337408,3102.2,3100.9,0.1856]
[1763338526996,0.8782568,3102.1,3100.9,0.6592]
[1763338527198,0.6482562,3102.2,3101.0,0.4736]
[1763338527408,0.1781997,3102.1,3101.0,0.4736]
[1763338527717,1.37083438,3102.1,3100.7,0.1856]
[1763338527887,0.892904,3102.0,3100.7,0.1856]
[1763338528224,2.01717518,3101.9,3100.6,0.4746]
[1763338528411,1.67119419,3101.7,3100.6,0.4746]
[1763338529000,3.24005441,3101.7,3100.6,0.4746]
[1763338529189,2.81109985,3101.5,3100.6,0.4746]
[1763338529394,1.67735905,3101.5,3100.6,0.4746]
[1763338529707,0.36455584,3101.6,3100.6,0.4746]
[1763338530014,1.82627752,3102.4,3101.5,0.6564]
[1763338530200,0.4874,3102.1,3100.6,0.4746]
[1763338530401,0.43511942,3102.0,3100.6,0.4746]
[1763338530605,0.1659,3102.4,3100.6,0.4746]
[1763338530801,2.96001832,3102.4,3100.6,0.4746]
[1763338531003,0.1659,3102.6,3100.7,0.405504]
[1763338531210,0.88343438,3103.1,3100.7,0.405504]
[1763338531417,0.88343438,3103.1,3100.9,0.405504]
[1763338531418,0.6533,3103.0,3100.9,0.405504]
[1763338531895,1.56886022,3102.9,3101.1,0.405504]
[1763338532231,0.43511942,3102.9,3102.0,0.1856]
[1763338532439,0.16361864,3103.0,3102.8,0.6564]
[1763338532601,0.6689,3103.9,3102.9,0.4708]
[1763338532802,0.1815,3103.9,3102.9,0.9444]
[1763338532997,1.49408249,3103.9,3102.8,0.1856]
[1763338533198,1.56886022,3103.8,3102.9,0.4736]
[1763338533439,0.43511942,3103.8,3102.7,0.1856]
[1763338533639,0.43511942,3103.8,3102.8,0.4736]
[1763338533842,2.01717518,3103.8,3102.8,0.4736]
[1763338534003,2.82558733,3103.7,3102.7,0.1856]
[1763338534204,2.17924653,3103.7,3102.7,0.1856]
[1763338534624,0.4874,3103.7,3102.7,0.1856]
[1763338534818,1.62881344,3103.6,3102.7,0.1856]
[1763338535021,0.88343438,3103.8,3101.1,0.591104]
[1763338535022,0.6383,3102.8,3101.1,0.591104]
[1763338535224,1.81566197,3102.8,3101.1,0.95009345]
[1763338535455,1.1337408,3102.7,3101.2,0.4736]
[1763338535605,2.94940277,3102.8,3101.2,0.4736]
[1763338535804,1.81566197,3102.8,3101.2,0.4736]
[1763338536033,0.165,3102.8,3101.3,0.405504]
[1763338536310,1.9434,3103.5,3102.7,0.6564]
[1763338536621,1.9434,3103.5,3101.1,0.1856]
[1763338536622,1.64452299,3103.3,3101.5,0.405504]
[1763338536814,3.83940115,3103.4,3101.5,0.405504]
[1763338537006,3.83940115,3103.4,3101.7,0.405504]
[1763338537415,3.83940115,3103.4,3101.8,0.4736]
[1763338537616,3.83940115,3103.4,3101.1,0.1856]
[1763338537617,4.14909817,3103.3,3101.1,0.1856]
[1763338537820,1.64947663,3103.1,3101.1,0.6592]
[1763338538061,1.64947663,3103.1,3101.2,0.405504]